bitfinex-derivatives/quotes_BNBF0:USTF0_20260110
["timestamp","ask_amount","ask_price","bid_price","bid_amount"]
[1768081957600,0.192279,905.68,904.43,0.73805907]
[1768081957800,0.192279,905.68,904.44,0.73805907]
[1768081958001,0.192279,905.68,904.45,0.73805907]
[1768081958197,0.192279,905.68,904.46,0.73805907]
[1768081958499,0.192279,905.68,904.47,0.73805907]
[1768081958699,0.192279,905.68,904.48,0.73805907]
[1768081958997,0.192279,905.68,904.49,0.73805907]
[1768081959196,0.192279,905.68,904.5,0.73805907]
[1768081959495,0.192279,905.68,904.51,0.73805907]
[1768081959698,0.192279,905.68,904.52,0.73805907]
[1768081960000,0.192279,905.68,904.53,0.73805907]
[1768081960200,0.192279,905.68,904.54,0.73805907]
[1768081960498,0.192279,905.68,904.55,0.73805907]
[1768081960700,0.192279,905.68,904.56,0.73805907]
[1768081960901,0.192279,905.68,904.57,0.73805907]
[1768081961097,0.192279,905.68,904.58,0.73805907]
[1768081961400,0.192279,905.68,904.59,0.73805907]
[1768081961598,0.192279,905.68,904.6,0.73805907]
[1768081961901,0.192279,905.68,904.61,0.73805907]
[1768081962202,0.192279,905.68,904.62,0.73805907]
[1768081962401,0.192279,905.68,904.63,0.73805907]
[1768081962597,0.192279,905.68,904.4,7.33593644]
[1768081962801,0.192279,905.68,904.41,0.73804432]
[1768081962997,0.192279,905.68,904.42,0.73804432]
[1768081963300,0.192279,905.68,904.43,0.73804432]
[1768081963502,0.192279,905.68,904.44,0.73804432]
[1768081963797,0.192279,905.68,904.45,0.73804432]
[1768081963999,0.192279,905.68,904.46,0.73804432]
[1768081964199,0.192279,905.68,904.47,0.73804432]
[1768081964401,0.192279,905.68,904.48,0.73804432]
[1768081964696,0.192279,905.68,904.49,0.73804432]
[1768081964902,0.192279,905.68,904.5,0.73804432]
[1768081965100,0.192279,905.68,904.51,0.73804432]
[1768081965304,0.192279,905.68,904.52,0.73804432]
[1768081965504,0.192279,905.68,904.53,0.73804432]
[1768081965704,0.192279,905.68,904.54,0.73804432]
[1768081965905,0.192279,905.68,904.55,0.73804432]
[1768081966205,0.192279,905.68,904.56,0.73804432]
[1768081966501,0.192279,905.68,904.57,0.73804432]
[1768081966800,0.192279,905.68,904.58,0.73804432]
[1768081967003,0.192279,905.68,904.59,0.73804432]
[1768081967201,0.192279,905.68,904.6,0.73804432]
[1768081967399,0.192279,905.68,904.61,0.73804432]
[1768081967600,0.192279,905.68,904.62,0.73804432]
[1768081967905,0.192279,905.68,904.63,0.73804432]
[1768081968104,0.192279,905.68,904.64,0.73804432]
[1768081968402,0.192279,905.68,904.4,7.33593644]
[1768081968602,0.192279,905.68,904.41,0.73808448]
[1768081968905,0.192279,905.68,904.42,0.73808448]
[1768081969206,0.192279,905.68,904.43,0.73808448]
[1768081969505,0.192279,905.68,904.44,0.73808448]
[1768081969805,0.192279,905.68,904.45,0.73808448]
[1768081970004,0.192279,905.68,904.46,0.73808448]
[1768081970206,0.192279,905.68,904.47,0.73808448]
[1768081970405,0.192279,905.68,904.48,0.73808448]
[1768081970605,0.192279,905.68,904.49,0.73808448]
[1768081970803,0.192279,905.68,904.5,0.73808448]
[1768081971006,0.192279,905.68,904.51,0.73808448]
[1768081971309,0.192279,905.68,904.52,0.73808448]
[1768081971502,0.192279,905.68,904.53,0.73808448]
[1768081971706,0.192279,905.68,904.54,0.73808448]
[1768081971900,0.192279,905.68,904.55,0.73808448]
[1768081972103,0.192279,905.68,904.56,0.73808448]
[1768081972300,0.192279,905.68,904.57,0.73808448]
[1768081972505,0.192279,905.68,904.58,0.73808448]
[1768081972707,0.192279,905.68,904.59,0.73808448]
[1768081972907,0.192279,905.68,904.6,0.73808448]
[1768081973108,0.192279,905.68,904.61,0.73808448]
[1768081973305,0.192279,905.68,904.62,0.73808448]
[1768081973507,0.192279,905.68,904.63,0.73808448]
[1768081973803,0.192279,905.68,904.64,0.73808448]
[1768081974005,0.192279,905.68,904.65,0.73808448]
[1768081974207,0.192279,905.68,904.4,7.33593644]
[1768081974503,0.192279,905.68,904.41,0.73771337]
[1768081974807,0.192279,905.68,904.42,0.73771337]
[1768081975008,0.192279,905.68,904.43,0.73771337]
[1768081975208,0.192279,905.68,904.4,7.33593644]
[1768081975209,0.192279,905.68,904.44,0.73771337]
[1768081975504,0.192279,905.68,904.45,0.73771337]
[1768081975804,0.192279,905.68,904.46,0.73771337]
[1768081976005,0.192279,905.68,904.47,0.73771337]
[1768081976305,0.192279,905.68,904.48,0.73771337]
[1768081976509,0.192279,905.68,904.49,0.73771337]
[1768081976709,0.192279,905.68,904.5,0.73771337]
[1768081977007,0.192279,905.68,904.51,0.73771337]
[1768081977207,0.192279,905.68,904.52,0.73771337]
[1768081977410,0.192279,905.68,904.53,0.73771337]
[1768081977607,0.192279,905.68,904.54,0.73771337]
[1768081977814,0.192279,905.68,904.55,0.73771337]
[1768081978006,0.192279,905.68,904.56,0.73771337]
[1768081978210,0.192279,905.68,904.57,0.73771337]
[1768081978510,0.192279,905.68,904.58,0.73771337]
[1768081978810,0.192279,905.68,904.59,0.73771337]
[1768081979010,0.192279,905.68,904.6,0.73771337]
[1768081979209,0.192279,905.68,904.61,0.73771337]
[1768081979410,0.192279,905.68,904.62,0.73771337]
[1768081979606,0.192279,905.68,904.63,0.73771337]
[1768081979810,0.192279,905.68,904.64,0.73771337]
[1768081980112,0.192279,905.68,904.65,0.73771337]
[1768081980308,0.192279,905.68,904.66,0.73771337]
[1768081980511,0.192279,905.68,904.61,2.15]
[1768082007727,0.192279,905.68,903.92,0.82914591]
[1768082007928,0.192279,905.68,903.93,0.71526484]
[1768082008128,0.192279,905.68,903.94,0.71526484]
[1768082008328,0.192279,905.68,903.95,0.71526484]
[1768082008628,0.192279,905.68,903.96,0.71526484]
[1768082008824,0.192279,905.68,903.97,0.71526484]
[1768082009027,0.192279,905.68,903.98,0.71526484]
[1768082009228,0.192279,905.68,903.99,0.71526484]
[1768082009427,0.192279,905.68,904.0,0.71526484]
[1768082009628,0.192279,905.68,904.01,0.71526484]
[1768082009824,0.192279,905.68,904.02,0.71526484]
[1768082010028,0.192279,905.68,904.03,0.71526484]
[1768082010329,0.192279,905.68,904.04,0.71526484]
[1768082010524,0.192279,905.68,904.05,0.71526484]
[1768082010726,0.192279,905.68,904.06,0.71526484]
[1768082010930,0.192279,905.68,904.07,0.71526484]
[1768082011129,0.192279,905.68,904.08,0.71526484]
[1768082011330,0.192279,905.68,904.09,0.71526484]
[1768082011532,0.192279,905.68,904.1,0.71526484]
[1768082011731,0.192279,905.68,904.11,0.71526484]
[1768082011926,0.192279,905.68,904.12,0.71526484]
[1768082012126,0.192279,905.68,904.13,0.71526484]
[1768082012331,0.192279,905.68,904.14,0.71526484]
[1768082012529,0.192279,905.68,904.15,0.71526484]
[1768082012732,0.192279,905.68,904.16,0.71526484]
[1768082012930,0.192279,905.68,904.17,0.71526484]
[1768082013133,0.192279,905.68,904.18,0.71526484]
[1768082013335,0.192279,905.68,904.19,0.71526484]
[1768082013532,0.192279,905.68,904.2,0.71526484]
[1768082013731,0.192279,905.68,904.21,0.71526484]
[1768082013930,0.192279,905.68,904.22,0.71526484]
[1768082014131,0.192279,905.68,904.23,0.71526484]
[1768082014435,0.192279,905.68,904.24,0.71526484]
[1768082014630,0.192279,905.68,904.25,0.71526484]
[1768082014830,0.192279,905.68,904.03,2.608]
[1768082015130,0.192279,905.68,904.04,0.7156137]
[1768082015333,0.192279,905.68,904.05,0.7156137]
[1768082015532,0.192279,905.68,904.06,0.7156137]
[1768082015733,0.192279,905.68,904.07,0.7156137]
[1768082015936,0.192279,905.68,904.08,0.7156137]
[1768082016134,0.192279,905.68,904.09,0.7156137]
[1768082016336,0.192279,905.68,904.1,0.7156137]
[1768082016534,0.192279,905.68,904.11,0.7156137]
[1768082016737,0.192279,905.68,904.12,0.7156137]
[1768082017033,0.192279,905.68,904.13,0.7156137]
[1768082017234,0.192279,905.68,904.14,0.7156137]
[1768082017437,0.192279,905.68,904.03,2.608]
[1768082017438,0.192279,905.68,904.15,0.7156137]
[1768082017734,0.192279,905.68,904.16,0.7156137]
[1768082018038,0.192279,905.68,904.17,0.7156137]
[1768082018233,0.192279,905.68,904.18,0.7156137]
[1768082018437,0.192279,905.68,904.19,0.7156137]
[1768082018638,0.192279,905.68,904.2,0.7156137]
[1768082018838,0.192279,905.68,904.21,0.7156137]
[1768082019038,0.192279,905.68,904.22,0.7156137]
[1768082019337,0.192279,905.68,904.23,0.7156137]
[1768082019539,0.192279,905.68,904.24,0.7156137]
[1768082019837,0.192279,905.68,904.25,0.7156137]
[1768082020038,0.192279,905.68,904.26,0.7156137]
[1768082020239,0.192279,905.68,904.27,0.7156137]
[1768082020539,0.192279,905.68,904.03,2.608]
[1768082020740,0.192279,905.68,904.04,0.71608844]
[1768082020938,0.192279,905.68,904.05,0.71608844]
[1768082021140,0.192279,905.68,904.06,0.71608844]
[1768082021338,0.192279,905.68,904.07,0.71608844]
[1768082021541,0.192279,905.68,904.08,0.71608844]
[1768082021741,0.192279,905.68,904.09,0.71608844]
[1768082021943,0.192279,905.68,904.1,0.71608844]
[1768082022241,0.192279,905.68,904.03,2.608]
[1768082022242,0.192279,905.68,904.11,0.71608844]
[1768082022440,0.192279,905.68,904.12,0.71608844]
[1768082022741,0.192279,905.68,904.13,0.71608844]
[1768082022936,0.192279,905.68,904.14,0.71608844]
[1768082023139,0.192279,905.68,904.15,0.71608844]
[1768082023340,0.192279,905.68,904.16,0.71608844]
[1768082023538,0.192279,905.68,904.17,0.71608844]
[1768082023735,0.192279,905.68,904.18,0.71608844]
[1768082023939,0.192279,905.68,904.19,0.71608844]
[1768082024139,0.192279,905.68,904.03,2.608]
[1768082024140,0.192279,905.68,904.2,0.71608844]
[1768082024339,0.192279,905.68,904.21,0.71608844]
[1768082024539,0.192279,905.68,904.22,0.71608844]
[1768082024744,0.192279,905.68,904.23,0.71608844]
[1768082025044,0.192279,905.68,904.24,0.71608844]
[1768082025339,0.192279,905.68,904.25,0.71608844]
[1768082025540,0.192279,905.68,904.26,0.71608844]
[1768082025743,0.192279,905.68,904.27,0.71608844]
[1768082025943,0.192279,905.68,904.28,0.71608844]
[1768082026140,0.192279,905.68,904.08,0.82914591]
[1768082026141,0.192279,905.68,904.29,0.71608844]
[1768082026340,0.192279,905.68,904.3,0.71608844]
[1768082026544,0.192279,905.68,904.31,0.71608844]
[1768082026745,0.192279,905.68,904.32,0.71608844]
[1768082026946,0.192279,905.68,904.33,0.71608844]
[1768082027142,0.192279,905.68,904.34,0.71608844]
[1768082027345,0.192279,905.68,904.35,0.71608844]
[1768082027543,0.192279,905.68,904.36,0.71608844]
[1768082027843,0.192279,905.68,904.37,0.71608844]
[1768082028046,0.192279,905.68,904.08,0.82914591]
[1768082028347,0.192279,905.68,904.09,0.71646113]
[1768082028647,0.192279,905.68,904.18,0.82914591]
[1768082028845,0.192279,905.68,904.19,0.71646113]
[1768082029046,0.192279,905.68,904.2,0.71646113]
[1768082029243,0.192279,905.68,904.21,0.71646113]
[1768082029442,0.192279,905.68,904.22,0.71646113]
[1768082029644,0.192279,905.68,904.23,0.71646113]
[1768082029846,0.192279,905.68,904.24,0.71646113]
[1768082030142,0.192279,905.68,904.25,0.71646113]
[1768082030446,0.192279,905.68,904.26,0.71646113]
[1768082030646,0.192279,905.68,904.27,0.71646113]
[1768082030841,0.192279,905.68,904.28,0.71646113]
[1768082031043,0.192279,905.68,904.29,0.71646113]
[1768082031347,0.192279,905.68,904.3,0.71646113]
[1768082031542,0.192279,905.68,904.31,0.71646113]
[1768082031744,0.192279,905.68,904.32,0.71646113]
[1768082031946,0.192279,905.68,904.33,0.71646113]
[1768082032249,0.192279,905.68,904.34,0.71646113]
[1768082032449,0.192279,905.68,904.35,0.71646113]
[1768082032744,0.192279,905.68,904.16,0.82914591]
[1768082032745,0.192279,905.68,904.36,0.71646113]
[1768082032950,0.192279,905.68,904.37,0.71646113]
[1768082033151,0.192279,905.68,904.38,0.71646113]
[1768082033345,0.192279,905.68,904.39,0.71646113]
[1768082033549,0.192279,905.68,904.4,0.71646113]
[1768082033847,0.192279,905.68,904.41,0.71646113]
[1768082034053,0.192279,905.68,904.42,0.71646113]
[1768082034348,0.192279,905.68,904.43,0.71646113]
[1768082034650,0.192279,905.68,904.44,0.71646113]
[1768082034851,0.192279,905.68,904.45,0.71646113]
[1768082035047,0.192279,905.68,904.46,0.71646113]
[1768082035252,0.192279,905.68,904.47,0.71646113]
[1768082035452,0.192279,905.68,904.48,0.71646113]
[1768082035751,0.192279,905.68,904.49,0.71646113]
[1768082035950,0.192279,905.68,904.5,0.71646113]
[1768082036147,0.192279,905.68,904.51,0.71646113]
[1768082036346,0.192279,905.68,904.52,0.71646113]
[1768082036547,0.192279,905.68,904.23,0.82914591]
[1768082036749,0.192279,905.68,904.24,0.72700709]
[1768082036951,0.192279,905.68,904.25,0.72700709]
[1768082037151,0.192279,905.68,904.26,0.72700709]
[1768082037351,0.192279,905.68,904.27,0.72700709]
[1768082037552,0.192279,905.68,904.28,0.72700709]
[1768082037751,0.192279,905.68,904.29,0.72700709]
[1768082037952,0.192279,905.68,904.3,0.72700709]
[1768082038148,0.192279,905.68,904.31,0.72700709]
[1768082038347,0.192279,905.68,904.32,0.72700709]
[1768082038549,0.192279,905.68,904.33,0.72700709]
[1768082038847,0.192279,905.68,904.34,0.72700709]
[1768082039047,0.192279,905.68,904.35,0.72700709]
[1768082039351,0.192279,905.68,904.36,0.72700709]
[1768082039549,0.192279,905.68,904.37,0.72700709]
[1768082039749,0.192279,905.68,904.38,0.72700709]
[1768082039949,0.192279,905.68,904.39,0.72700709]
[1768082040149,0.192279,905.68,904.4,0.72700709]
[1768082040352,0.192279,905.68,904.41,0.72700709]
[1768082040650,0.192279,905.68,904.42,0.72700709]
[1768082040955,0.192279,905.68,904.43,0.72700709]
[1768082041248,0.192279,905.68,904.44,0.72700709]
[1768082041449,0.192279,905.68,904.45,0.72700709]
[1768082041650,0.192279,905.68,904.46,0.72700709]
[1768082041954,0.192279,905.68,904.47,0.72700709]
[1768082042155,0.192279,905.68,904.48,0.72700709]
[1768082042451,0.192279,905.68,904.49,0.72700709]
[1768082042651,0.192279,905.68,904.5,0.72700709]
[1768082042853,0.192279,905.68,904.51,0.72700709]
[1768082043054,0.192279,905.68,904.52,0.72700709]
[1768082043254,0.192279,905.68,904.53,0.72700709]
[1768082043454,0.192279,905.68,904.54,0.72700709]
[1768082043755,0.192279,905.68,904.55,0.72700709]
[1768082043954,0.192279,905.68,904.56,0.72700709]
[1768082044153,0.192279,905.68,904.27,0.82914591]
[1768082044353,0.192279,905.68,904.03,2.608]
[1768082044354,0.192279,905.68,904.28,1.55668139]
[1768082044655,0.192279,905.68,904.29,0.72753548]
[1768082044954,0.192279,905.68,904.3,0.72753548]
[1768082045150,0.192279,905.68,904.31,0.72753548]
[1768082045454,0.192279,905.68,904.32,0.72753548]
[1768082045655,0.192279,905.68,904.33,0.72753548]
[1768082045951,0.192279,905.68,904.34,0.72753548]
[1768082046152,0.192279,905.68,904.35,0.72753548]
[1768082046350,0.192279,905.68,904.36,0.72753548]
[1768082046555,0.192279,905.68,904.37,0.72753548]
[1768082046755,0.192279,905.68,904.38,0.72753548]
[1768082046951,0.192279,905.68,904.39,0.72753548]
[1768082047152,0.192279,905.68,904.4,0.72753548]
[1768082047451,0.192279,905.68,904.41,0.72753548]
[1768082047657,0.192279,905.68,904.42,0.72753548]
[1768082047854,0.192279,905.68,904.43,0.72753548]
[1768082048153,0.192279,905.68,904.44,0.72753548]
[1768082048457,0.192279,905.68,904.45,0.72753548]
[1768082048658,0.192279,905.68,904.46,0.72753548]
[1768082048853,0.192279,905.68,904.47,0.72753548]
[1768082049057,0.192279,905.68,904.48,0.72753548]
[1768082049354,0.192279,905.68,904.49,0.72753548]
[1768082049554,0.192279,905.68,904.5,0.72753548]
[1768082049753,0.192279,905.68,904.51,0.72753548]
[1768082049957,0.192279,905.68,904.52,0.72753548]
[1768082050154,0.192279,905.68,904.53,0.72753548]
[1768082050358,0.192279,905.68,904.54,0.72753548]
[1768082050560,0.192279,905.68,904.55,0.72753548]
[1768082050860,0.192279,905.68,904.56,0.72753548]
[1768082051059,0.192279,905.68,904.57,0.72753548]
[1768082051262,0.192279,905.68,904.29,0.82914591]
[1768082051457,0.192279,905.68,904.3,0.72791911]
[1768082051761,0.192279,905.68,904.31,0.72791911]
[1768082051956,0.192279,905.68,904.32,0.72791911]
[1768082052156,0.192279,905.68,904.33,0.72791911]
[1768082052358,0.192279,905.68,904.34,0.72791911]
[1768082052557,0.192279,905.68,904.35,0.72791911]
[1768082052759,0.192279,905.68,904.36,0.72791911]
[1768082052961,0.192279,905.68,904.37,0.72791911]
[1768082053158,0.192279,905.68,904.38,0.72791911]
[1768082053461,0.192279,905.68,904.39,0.72791911]
[1768082053661,0.192279,905.68,904.4,0.72791911]
[1768082053856,0.192279,905.68,904.41,0.72791911]
[1768082054161,0.192279,905.68,904.42,0.72791911]
[1768082054356,0.192279,905.68,904.43,0.72791911]
[1768082054661,0.192279,905.68,904.44,0.72791911]
[1768082054857,0.192279,905.68,904.45,0.72791911]
[1768082055056,0.192279,905.68,904.46,0.72791911]
[1768082055360,0.192279,905.68,904.47,0.72791911]
[1768082055561,0.192279,905.68,904.48,0.72791911]
[1768082055861,0.192279,905.68,904.49,0.72791911]
[1768082056064,0.192279,905.68,904.5,0.72791911]
[1768082056264,0.192279,905.68,904.51,0.72791911]
[1768082056563,0.192279,905.68,904.52,0.72791911]
[1768082056761,0.192279,905.68,904.53,0.72791911]
[1768082056965,0.192279,905.68,904.54,0.72791911]
[1768082057264,0.192279,905.68,904.55,0.72791911]
[1768082057461,0.192279,905.68,904.56,0.72791911]
[1768082057762,0.192279,905.68,904.57,0.72791911]
[1768082057964,0.192279,905.68,904.58,0.72791911]
[1768082058162,0.192279,905.68,904.59,0.72791911]
[1768082058366,0.192279,905.68,904.3,0.82914591]
[1768082058563,0.192279,905.68,904.31,0.72812233]
[1768082058761,0.192279,905.68,904.32,0.72812233]
[1768082058960,0.192279,905.68,904.33,0.72812233]
[1768082059164,0.192279,905.68,904.34,0.72812233]
[1768082059362,0.192279,905.68,904.35,0.72812233]
[1768082059562,0.192279,905.68,904.36,0.72812233]
[1768082059761,0.192279,905.68,904.37,0.72812233]
[1768082059966,0.192279,905.68,904.38,0.72812233]
[1768082060262,0.192279,905.68,904.39,0.72812233]
[1768082060463,0.192279,905.68,904.4,0.72812233]
[1768082060665,0.192279,905.68,904.41,0.72812233]
[1768082060965,0.192279,905.68,904.42,0.72812233]
[1768082061265,0.192279,905.68,904.43,0.72812233]
[1768082061465,0.192279,905.68,904.44,0.72812233]
[1768082061670,0.192279,905.68,904.45,0.72812233]
[1768082061867,0.192279,905.68,904.46,0.72812233]
[1768082062064,0.192279,905.68,904.47,0.72812233]
[1768082062265,0.192279,905.68,904.48,0.72812233]
[1768082062465,0.192279,905.68,904.49,0.72812233]
[1768082062666,0.192279,905.68,904.5,0.72812233]
[1768082062866,0.192279,905.68,904.51,0.72812233]
[1768082063068,0.192279,905.68,904.52,0.72812233]
[1768082063269,0.192279,905.68,904.53,0.72812233]
[1768082063467,0.192279,905.68,904.54,0.72812233]
[1768082063669,0.192279,905.68,904.55,0.72812233]
[1768082063871,0.192279,905.68,904.21,0.82914591]
[1768082064164,0.192279,905.68,904.22,0.7285381]
[1768082064369,0.192279,905.68,904.23,0.7285381]
[1768082064570,0.192279,905.68,904.24,0.7285381]
[1768082064767,0.192279,905.68,904.25,0.7285381]
[1768082064970,0.192279,905.68,904.26,0.7285381]
[1768082065167,0.192279,905.68,904.27,0.7285381]
[1768082065368,0.192279,905.68,904.28,0.7285381]
[1768082065567,0.192279,905.68,904.29,0.7285381]
[1768082065773,0.192279,905.68,904.3,0.7285381]
[1768082065971,0.192279,905.68,904.31,0.7285381]
[1768082066267,0.192279,905.68,904.32,0.7285381]
[1768082066470,0.192279,905.68,904.33,0.7285381]
[1768082066666,0.192279,905.68,904.34,0.7285381]
[1768082066871,0.192279,905.68,904.22,0.82914591]
[1768082066872,0.192279,905.68,904.35,0.7285381]
[1768082067067,0.192279,905.68,904.36,0.7285381]
[1768082067266,0.192279,905.68,904.37,0.7285381]
[1768082067468,0.192279,905.68,904.38,0.7285381]
[1768082067669,0.192279,905.68,904.39,0.7285381]
[1768082067866,0.192279,905.68,904.4,0.7285381]
[1768082068066,0.192279,905.68,904.41,0.7285381]
[1768082068271,0.192279,905.68,904.42,0.7285381]
[1768082068471,0.192279,905.68,904.43,0.7285381]
[1768082068672,0.192279,905.68,904.44,0.7285381]
[1768082068868,0.192279,905.68,904.45,0.7285381]
[1768082069170,0.192279,905.68,904.46,0.7285381]
[1768082069372,0.192279,905.68,904.47,0.7285381]
[1768082069567,0.192279,905.68,904.48,0.7285381]
[1768082069868,0.192279,905.68,904.49,0.7285381]
[1768082070072,0.192279,905.68,904.5,0.7285381]
[1768082070273,0.192279,905.68,904.51,0.7285381]
[1768082070474,0.192279,905.68,904.52,0.7285381]
[1768082070769,0.192279,905.68,904.44,2.35]
[1768082070974,0.192279,905.68,904.45,0.72775159]
[1768082071172,0.192279,905.68,904.46,0.72775159]
[1768082071373,0.192279,905.68,904.47,0.72775159]
[1768082071673,0.192279,905.68,904.48,0.72775159]
[1768082071874,0.192279,905.68,904.49,0.72775159]
[1768082072073,0.192279,905.68,904.5,0.72775159]
[1768082072274,0.192279,905.68,904.51,0.72775159]
[1768082072573,0.192279,905.68,904.44,2.35]
[1768082072768,0.192279,905.68,904.45,0.72773129]
[1768082072969,0.192279,905.68,904.46,0.72773129]
[1768082073169,0.192279,905.68,904.44,2.35]
[1768082073373,0.192279,905.68,904.45,0.72773123]
[1768082073568,0.192279,905.68,904.46,0.72773123]
[1768082073771,0.192279,905.68,904.44,2.35]
[1768082073974,0.192279,905.68,904.45,0.72770497]
[1768082074174,0.192279,905.68,904.44,2.35]
[1768082074474,0.192279,905.68,904.45,0.72764081]
[1768082074771,0.192279,905.68,904.44,2.35]
[1768082075075,0.192279,905.68,904.45,0.72764081]
[1768082075274,0.192279,905.68,904.44,2.35]
[1768082075474,0.192279,905.68,904.45,0.72758438]
[1768082075774,0.192279,905.68,904.44,2.35]
[1768082076074,0.192279,905.68,904.45,0.72758438]
[1768082076274,0.192279,905.68,904.44,2.35]
[1768082076472,0.192279,905.68,904.45,0.72753468]
[1768082076673,0.192279,905.68,904.44,2.35]
[1768082076976,0.192279,905.68,904.45,0.72753468]
[1768082077172,0.192279,905.68,904.44,2.35]
[1768082083079,0.192279,905.68,904.45,0.72734622]
[1768082083278,0.192279,905.68,904.46,0.72734622]
[1768082083575,0.192279,905.68,904.44,2.35]
[1768082083775,0.192279,905.68,904.45,0.72733023]
[1768082083979,0.192279,905.68,904.46,0.72733023]
[1768082084177,0.192279,905.68,904.44,2.35]
[1768082084377,0.192279,905.68,904.45,0.72731788]
[1768082084581,0.192279,905.68,904.46,0.72731788]
[1768082084782,0.192279,905.68,904.44,2.35]
[1768082084978,0.192279,905.68,904.45,0.72731788]
[1768082085179,0.192279,905.68,904.46,0.72731788]
[1768082085383,0.192279,905.68,904.44,2.35]
[1768082085580,0.192279,905.68,904.45,0.72731051]
[1768082085778,0.192279,905.68,904.46,0.72731051]
[1768082085979,0.192279,905.68,904.44,2.35]
[1768082086182,0.192279,905.68,904.45,0.72731051]
[1768082086382,0.192279,905.68,904.46,0.72731051]
[1768082086583,0.192279,905.68,904.44,2.35]
[1768082086780,0.192279,905.68,904.45,0.72730418]
[1768082086983,0.192279,905.68,904.46,0.72730418]
[1768082087184,0.192279,905.68,904.44,2.35]
[1768082087381,0.192279,905.68,904.45,0.72730138]
[1768082087584,0.192279,905.68,904.46,0.72730138]
[1768082087783,0.192279,905.68,904.44,2.35]
[1768082087983,0.192279,905.68,904.45,0.72730138]
[1768082088180,0.192279,905.68,904.46,0.72730138]
[1768082088483,0.192279,905.68,904.44,2.35]
[1768082088680,0.192279,905.68,904.45,0.72730198]
[1768082088881,0.192279,905.68,904.46,0.72730198]
[1768082089084,0.192279,905.68,904.17,0.82914591]
[1768082089284,0.192279,905.68,904.18,0.72730198]
[1768082089486,0.192279,905.68,904.19,0.72730198]
[1768082089685,0.192279,905.68,904.2,0.72730198]
[1768082089884,0.192279,905.68,904.21,0.72730198]
[1768082090185,0.192279,905.68,904.22,0.72730198]
[1768082090381,0.192279,905.68,904.23,0.72730198]
[1768082090585,0.192279,905.68,904.24,0.72730198]
[1768082090785,0.192279,905.68,904.25,0.72730198]
[1768082090981,0.192279,905.68,904.26,0.72730198]
[1768082091182,0.192279,905.68,904.27,0.72730198]
[1768082091484,0.192279,905.68,904.28,0.72730198]
[1768082091780,0.192279,905.68,904.29,0.72730198]
[1768082091985,0.192279,905.68,904.3,0.72730198]
[1768082092180,0.192279,905.68,904.31,0.72730198]
[1768082092385,0.192279,905.68,904.32,0.72730198]
[1768082092684,0.192279,905.68,904.33,0.72730198]
[1768082092880,0.192279,905.68,904.34,0.72730198]
[1768082093084,0.192279,905.68,904.35,0.72730198]
[1768082093283,0.192279,905.68,904.36,0.72730198]
[1768082093484,0.192279,905.68,904.37,0.72730198]
[1768082093783,0.192279,905.68,904.38,0.72730198]
[1768082093981,0.192279,905.68,904.39,0.72730198]
[1768082094185,0.192279,905.68,904.4,0.72730198]
[1768082094381,0.192279,905.68,904.41,0.72730198]
[1768082094684,0.192279,905.68,904.42,0.72730198]
[1768082094886,0.192279,905.68,904.43,0.72730198]
[1768082095182,0.192279,905.68,904.44,0.72730198]
[1768082095480,0.192279,905.68,904.45,0.72730198]
[1768082095679,0.192279,905.68,904.33,2.365]
[1768082095883,0.192279,905.68,904.34,0.72478244]
[1768082096086,0.192279,905.68,904.35,0.72478244]
[1768082096381,0.192279,905.68,904.36,0.72478244]
[1768082096582,0.192279,905.68,904.37,0.72478244]
[1768082096786,0.192279,905.68,904.38,0.72478244]
[1768082096987,0.192279,905.68,904.39,0.72478244]
[1768082097182,0.192279,905.68,904.4,0.72478244]
[1768082097388,0.192279,905.68,904.41,0.72478244]
[1768082097586,0.192279,905.68,904.42,0.72478244]
[1768082097787,0.192279,905.68,904.43,0.72478244]
[1768082097988,0.192279,905.68,904.44,0.72478244]
[1768082098284,0.192279,905.68,904.45,0.72478244]
[1768082098484,0.192279,905.68,904.46,0.72478244]
[1768082098687,0.192279,905.68,904.33,2.365]
[1768082098885,0.192279,905.68,904.34,0.72488978]
[1768082099086,0.192279,905.68,904.35,0.72488978]
[1768082099284,0.192279,905.68,904.33,2.365]
[1768082099285,0.192279,905.68,904.36,0.72488978]
[1768082099484,0.192279,905.68,904.37,0.72488978]